bitfinex/quotes_ETHUSD_20240917
["timestamp","ask_amount","ask_price","bid_price","bid_amount"]
[1726599011646,2.28879035,2358.1,2358.0,13.5688492]
[1726599011948,1.28307331,2358.1,2358.0,14.93185516]
[1726599013059,1.28307331,2358.1,2358.0,24.58603516]
[1726599013345,0.64246143,2358.1,2358.0,24.58603516]
[1726599013944,0.64246143,2358.1,2358.0,29.37691516]
[1726599014305,0.64246143,2358.1,2358.0,33.61779516]
[1726599014565,0.87897139,2359.1,2358.6,3.0]
[1726599014752,0.87897139,2359.1,2358.7,4.23952]
[1726599014753,1.50780535,2359.0,2358.7,4.23952]
[1726599014951,1.50780535,2359.0,2358.6,7.23968]
[1726599014952,1.63496829,2358.9,2358.6,7.23968]
[1726599015111,1.63496829,2358.8,2358.6,4.147953]
[1726599015315,0.62883396,2358.7,2358.6,8.387753]
[1726599015851,0.62903377,2358.9,2358.7,4.23959]
[1726599016153,1.63555502,2358.8,2358.7,5.0783443]
[1726599016564,0.62905962,2358.8,2358.7,19.7781718]
[1726599016863,0.62905962,2358.8,2358.7,14.8094643]
[1726599017617,0.62905962,2358.8,2358.7,10.5698743]
[1726599017864,2.51507269,2359.0,2358.8,4.23943]
[1726599018157,1.63601413,2358.9,2358.8,4.23943]
[1726599018401,1.63601413,2358.9,2358.8,9.65981743]
[1726599018579,0.6292362,2358.9,2358.8,12.65981743]
[1726599018971,0.6292362,2358.9,2358.8,16.89925743]
[1726599019386,0.87897139,2359.4,2359.3,4.23854]
[1726599019606,1.63637394,2359.4,2359.3,18.927546]
[1726599019771,0.62937459,2359.4,2359.3,14.39128]
[1726599020200,0.0081236,2359.6,2359.5,4.23818]
[1726599020408,0.0081236,2359.6,2359.5,8.47636]
[1726599020610,0.63760028,2359.6,2359.5,8.47636]
[1726599021192,0.0081236,2359.6,2359.5,8.47636]
[1726599021404,0.62582378,2359.6,2359.5,8.47636]
[1726599021623,0.0081236,2359.6,2359.5,8.47636]
[1726599021912,0.0081236,2359.6,2359.5,4.23818]
[1726599022334,0.62581847,2359.6,2359.5,4.23818]
[1726599022834,0.62581847,2359.6,2359.5,8.47636]
[1726599023191,0.62581847,2359.6,2359.5,4.23818]
[1726599023192,0.0081236,2359.6,2359.5,4.23818]
[1726599023536,0.62576893,2359.6,2359.4,8.4766]
[1726599023833,0.62576893,2359.6,2359.5,4.23818]
[1726599023834,0.0081236,2359.6,2359.5,4.23818]
[1726599023994,0.62576639,2359.6,2359.4,4.23825]
[1726599024196,0.0081236,2359.6,2359.4,4.23825]
[1726599024493,6.54367,2359.5,2359.0,4.23899]
[1726599024709,4.85591849,2359.4,2359.0,4.23899]
[1726599024902,0.61755849,2359.3,2359.0,4.23899]
[1726599025126,8.7212976,2359.5,2359.0,4.23899]
[1726599025293,0.61753774,2359.4,2359.0,4.23899]
[1726599025493,0.61753774,2359.3,2359.1,4.23887]
[1726599025729,8.7214076,2359.5,2359.0,4.23899]
[1726599025938,0.61754857,2359.4,2359.2,4.23871]
[1726599026137,0.61754857,2359.3,2359.2,4.23871]
[1726599026441,0.0081236,2359.6,2359.4,4.23821]
[1726599026741,0.61762862,2359.5,2359.4,4.23821]
[1726599027398,0.61762452,2359.5,2359.4,4.23821]
[1726599028807,0.61762452,2359.5,2359.3,4.23846]
[1726599029003,4.2462136,2359.6,2359.1,8.47758]
[1726599029205,0.61758217,2359.5,2359.1,4.23878]
[1726599029433,0.61758217,2359.4,2359.1,4.23878]
[1726599029664,7.11885343,2359.3,2358.8,2.3025]
[1726599029799,0.61753343,2359.2,2358.8,7.23933]
[1726599029998,6.50132,2359.3,2358.8,3.0]
[1726599030312,4.85629526,2359.2,2358.8,3.0]
[1726599030646,0.61748526,2359.1,2358.8,3.0]
[1726599030856,0.61748526,2359.0,2358.5,4.2399]
[1726599031004,9.70133866,2359.2,2358.6,3.0]
[1726599031196,4.8562915,2359.1,2358.6,3.0]
[1726599031403,0.6173615,2359.0,2358.5,4.23985]
[1726599031597,0.6173615,2359.0,2358.6,4.23978]
[1726599032238,0.6173615,2359.0,2358.7,0.08463156]
[1726599032499,0.6173615,2358.9,2358.7,0.08463156]
[1726599032700,2.2627,2359.3,2358.8,4.23944]
[1726599032937,1.67356678,2359.2,2358.8,4.23944]
[1726599033255,0.64367953,2359.1,2358.9,0.08709396]
[1726599033451,0.64367953,2359.0,2358.9,0.08709396]
[1726599033613,4.88275953,2359.0,2358.9,0.08709396]
[1726599033951,5.91205793,2359.0,2358.5,4.23988]
[1726599034106,4.23908,2359.0,2358.9,0.08707897]
[1726599034301,4.23908,2359.0,2358.5,4.23988]
[1726599034302,5.91131936,2359.0,2358.5,4.23988]
[1726599034620,0.6430265,2358.9,2358.5,5.618687]
[1726599034953,4.23908,2359.0,2358.6,0.08728168]
[1726599035129,0.64294363,2358.9,2358.6,0.08728168]
[1726599035640,4.23945,2358.8,2358.6,0.08728168]
[1726599035813,0.64294363,2358.7,2358.6,0.08728168]
[1726599036249,0.64294363,2358.7,2358.3,7.24033]
[1726599036540,6.59145,2358.8,2358.6,0.08735662]
[1726599036838,0.64261434,2358.7,2358.3,8.97201795]
[1726599037044,0.64261434,2358.6,2358.3,8.97201795]
[1726599037241,4.23915,2359.0,2358.5,3.0]
[1726599037553,5.91009582,2358.9,2358.5,4.2399]
[1726599037702,0.6425907,2358.8,2358.5,4.2399]
[1726599037907,4.23927,2358.9,2358.6,0.53845218]
[1726599038143,0.64254148,2358.8,2358.4,5.38476179]
[1726599038342,4.23944,2358.8,2358.5,3.0]
[1726599038646,0.64252599,2358.7,2358.5,3.0]
[1726599038944,0.64251736,2358.6,2358.5,3.0]
[1726599039706,4.23927,2358.9,2358.5,8.07845618]
[1726599039922,5.91011658,2358.8,2358.5,3.83847618]
[1726599040107,5.91011784,2358.7,2358.3,7.2402]
[1726599040316,0.64251407,2358.6,2358.3,7.2402]
[1726599040538,4.23958,2358.8,2358.4,4.24016]
[1726599040745,1.67019184,2358.7,2358.5,3.0]
[1726599040982,0.64237841,2358.6,2358.5,7.23998]
[1726599041185,0.64237841,2358.6,2358.5,4.148014]
[1726599041977,0.64236918,2358.6,2358.2,6.71459]
[1726599042290,5.11819139,2359.0,2358.0,9.3279692]
[1726599042291,4.24042,2358.3,2358.0,9.3279692]
[1726599042589,0.64236918,2358.5,2358.0,13.5687492]
[1726599042590,0.64236918,2358.2,2358.0,13.5687492]
[1726599042775,0.64232849,2358.1,2358.0,15.16941412]
[1726599042977,4.24025,2358.4,2358.0,15.16941412]
[1726599043179,1.67004565,2358.3,2358.0,15.16941412]
[1726599043496,0.64232525,2358.2,2358.0,15.16941412]
[1726599043654,0.64232525,2358.1,2358.0,18.16941412]
[1726599044186,4.24025,2358.4,2358.0,18.16941412]
[1726599044380,0.63367376,2358.3,2358.0,18.16941412]
[1726599044720,0.63367376,2358.2,2358.0,18.16941412]
[1726599044921,4.23973,2358.7,2358.3,4.24024]
[1726599045124,1.64778403,2358.6,2358.3,6.70404]
[1726599045280,0.65629965,2358.8,2358.3,6.70404]
[1726599045281,4.23951,2358.8,2358.4,4.24008]
[1726599045482,1.71601139,2358.7,2358.4,4.24008]
[1726599045698,1.71601139,2358.6,2358.3,2.4638]
[1726599045883,1.71601139,2358.5,2358.2,4.2405]
[1726599046102,0.66000438,2358.4,2358.3,4.24034]
[1726599046378,2.3999,2358.9,2358.2,4.04729996]
[1726599046379,0.66000438,2358.7,2358.2,4.04729996]
[1726599046583,1.71628265,2358.6,2358.3,4.24031]
[1726599046799,0.66010871,2358.5,2358.3,4.24031]
[1726599047127,0.66010871,2358.4,2358.3,3.0]
[1726599047488,4.90026871,2358.4,2358.1,1.48114719]
[1726599047683,0.66010871,2358.3,2358.1,1.48114719]
[1726599047887,4.24001,2358.5,2358.1,1.48114719]
[1726599048112,1.71608055,2358.4,2358.1,5.72182719]
[1726599048447,0.66003098,2358.4,2358.1,5.72182719]
[1726599048723,0.66003098,2358.3,2358.1,5.72182719]
[1726599048914,4.24001,2358.5,2358.1,1.48114719]
[1726599049228,0.66000851,2358.4,2358.1,4.24069]
[1726599049520,4.24006,2358.5,2358.0,13.5687092]
[1726599049521,0.66000979,2358.3,2358.0,13.5687092]
[1726599049731,4.24006,2358.5,2358.0,17.8094892]
[1726599049931,4.24034,2358.3,2358.0,9.3279692]
[1726599050220,1.71599688,2358.4,2358.0,9.3279692]
[1726599050221,0.6600135,2358.2,2358.0,9.3279692]
[1726599050522,4.24018,2358.4,2358.0,9.3279692]
[1726599050728,0.65673377,2358.3,2358.0,9.3279692]
[1726599051019,0.65673377,2358.2,2358.0,9.3279692]
[1726599051199,4.24018,2358.4,2358.0,9.3279692]
[1726599051395,0.65675409,2358.3,2358.0,13.5688292]
[1726599051585,0.65675409,2358.2,2358.0,12.05853712]
[1726599051923,4.24018,2358.4,2358.0,12.05853712]
[1726599052241,3.92619688,2358.7,2358.0,12.05853712]
[1726599052242,0.65675894,2358.3,2358.1,0.08480786]
[1726599052405,6.63054,2358.7,2358.2,8.28781996]
[1726599052593,1.70775644,2358.6,2358.3,4.24024]
[1726599052792,1.70775644,2358.5,2358.3,4.24024]
[1726599052994,0.6568294,2358.4,2358.3,1.43919845]
[1726599053198,1.70775328,2358.4,2358.1,1.86392449]
[1726599053398,0.6568294,2358.3,2358.1,4.86392449]
[1726599053641,0.6568294,2358.2,2358.1,3.0]
[1726599053850,0.6568294,2358.2,2358.1,7.2407]
[1726599054134,6.6306,2358.7,2358.2,4.24038]
[1726599054336,1.67554656,2358.6,2358.3,4.24034]
[1726599054642,1.67554656,2358.5,2358.3,4.32825158]
[1726599054806,0.64444098,2358.4,2358.3,4.32825158]
[1726599054993,0.64444098,2358.4,2358.3,0.08791158]
[1726599055198,0.64444098,2358.4,2358.2,4.24049]
[1726599055398,0.64444098,2358.3,2358.2,6.32140192]
[1726599056322,4.2398,2358.6,2358.2,6.32140192]
[1726599056524,0.64438631,2358.3,2358.2,6.32140192]
[1726599056731,0.64438631,2358.3,2358.1,3.0]
[1726599057042,6.68442,2358.2,2358.0,9.3279692]
[1726599057245,4.2407,2358.1,2358.0,9.3279692]
[1726599057436,6.68442,2358.2,2358.0,9.3279692]
[1726599057943,0.64438631,2358.3,2358.0,9.3279692]
[1726599058143,0.64438631,2358.3,2358.1,4.24062]
[1726599058349,0.64438631,2358.3,2358.2,4.24052]
[1726599058500,0.64438631,2358.3,2358.2,8.48104]
[1726599058699,0.64438631,2358.3,2358.1,2.4188]
[1726599058899,0.64438631,2358.3,2358.2,4.24052]
[1726599059109,0.64438631,2358.3,2358.2,6.00493891]
[1726599059540,0.64438631,2358.3,2358.2,1.76441891]
[1726599059904,0.64438631,2358.3,2358.2,6.00493891]
[1726599060629,0.64438631,2358.3,2358.2,1.76441891]
[1726599060830,0.64438631,2358.3,2358.1,3.0]
[1726599061035,4.24065,2358.2,2358.0,9.3279692]
[1726599061250,0.64438631,2358.3,2358.0,9.3279692]
[1726599061467,0.64438631,2358.3,2358.1,6.64460033]
[1726599061604,0.64438631,2358.3,2358.2,2.42606795]
[1726599061806,0.64438631,2358.3,2358.2,6.66658795]
[1726599062921,0.64438631,2358.3,2358.2,25.12572791]
[1726599064335,0.64438631,2358.3,2358.2,29.36624791]
[1726599065207,7.42,2359.2,2358.8,4.23926]
[1726599065421,6.60698,2359.4,2359.0,4.239]
[1726599065648,6.60698,2359.4,2358.8,0.723926]
[1726599065649,4.23872,2359.2,2358.8,0.723926]
[1726599065963,2.3686,2359.4,2359.0,4.23899]
[1726599066159,6.60697,2359.4,2358.9,4.2391]
[1726599066464,6.60697,2359.4,2358.9,8.47826]
[1726599066749,6.60697,2359.4,2358.9,4.2391]
[1726599066923,0.64101555,2359.3,2358.9,4.2391]
[1726599067279,4.87983555,2359.2,2358.5,6.56544]
[1726599067437,4.23964,2358.7,2358.3,2.3256]
[1726599067641,3.10361555,2359.1,2358.1,2.3783]
[1726599067642,4.24003,2358.5,2358.1,2.3783]
[1726599067803,4.24022,2358.4,2358.0,9.3279692]
[1726599068455,4.2407,2358.1,2358.0,9.3279692]
[1726599068662,10.9462,2358.1,2358.0,9.3279692]
[1726599068945,7.10594434,2358.1,2358.0,9.3279692]
[1726599069449,7.10594434,2358.1,2358.0,9.40447338]
[1726599069810,7.12649361,2358.1,2358.0,9.40447338]
[1726599070212,6.7055,2358.1,2358.0,9.40447338]
[1726599070456,10.9462,2358.1,2358.0,9.40447338]
[1726599070749,7.12649549,2358.1,2358.0,9.40447338]
[1726599071111,2.88579549,2358.1,2358.0,9.40447338]
[1726599071528,7.12649549,2358.1,2358.0,9.40447338]
[1726599072120,3.09829082,2358.1,2358.0,9.40447338]
[1726599072322,3.09829177,2358.1,2358.0,9.40447338]
[1726599072552,0.63349177,2358.1,2358.0,9.40447338]
[1726599072856,0.42099549,2358.1,2358.0,9.40447338]
[1726599073211,0.42099549,2358.1,2358.0,15.00992372]
[1726599074410,0.42099549,2358.1,2358.0,10.76904372]
[1726599074757,0.42099549,2358.1,2358.0,9.40447338]
[1726599075824,0.63348119,2358.1,2358.0,9.40447338]
[1726599076018,6.19263827,2358.1,2358.0,9.40447338]
[1726599076256,4.87418119,2358.1,2358.0,9.40447338]
[1726599077321,5.55915708,2358.1,2358.0,9.40447338]
[1726599077619,4.89645269,2358.1,2358.0,9.40447338]
[1726599077863,5.52733239,2358.1,2358.0,9.40447338]
[1726599078221,6.84578947,2358.1,2358.0,9.40447338]
[1726599078609,5.52733239,2358.1,2358.0,9.40447338]
[1726599078917,9.76803239,2358.1,2358.0,9.40447338]
[1726599079155,4.8715797,2358.1,2358.0,9.40447338]
[1726599079933,9.1122797,2358.1,2358.0,9.40447338]
[1726599080120,8.37254076,2358.1,2358.0,9.40447338]
[1726599080319,6.19003678,2358.1,2358.0,9.40447338]
[1726599080628,4.8715797,2358.1,2358.0,9.40447338]
[1726599081122,4.2407,2358.1,2358.0,9.40447338]
[1726599081325,9.79985708,2358.1,2358.0,9.40447338]
[1726599081553,11.08408746,2358.1,2358.0,9.40447338]
[1726599081864,14.86069855,2358.1,2358.0,9.40447338]
[1726599082038,14.63378469,2358.1,2358.0,9.40447338]
[1726599082235,14.63378469,2358.1,2358.0,9.3279692]
[1726599082422,13.54225705,2358.1,2358.0,9.4052643]
[1726599082620,14.20243691,2358.1,2358.0,9.4052643]
[1726599082926,14.85815534,2358.1,2358.0,9.4052643]
[1726599083263,17.78295836,2358.1,2358.0,9.4052643]
[1726599083466,20.12726124,2358.1,2358.0,9.4052643]
[1726599083772,24.81131138,2358.1,2358.0,9.4052643]
[1726599083924,24.18276123,2358.1,2358.0,9.3279692]
[1726599084327,28.07414012,2358.1,2358.0,1.41596041]
[1726599084571,4.24282,2357.0,2355.0,2.4844]
[1726599084878,4.24282,2357.0,2354.7,0.0387904]
[1726599084879,14.48439523,2356.2,2354.7,0.0387904]
[1726599085171,14.48439523,2356.2,2355.3,4.2456]
[1726599085172,10.86703452,2356.2,2355.3,4.2456]
[1726599085355,4.65841892,2356.2,2355.4,7.47606448]
[1726599085530,0.41429892,2356.2,2355.5,4.24524]
[1726599085725,0.41429892,2356.2,2356.1,0.11015176]
[1726599085931,0.41429892,2356.2,2356.1,0.0387904]
[1726599086265,8.48824,2356.2,2356.1,0.0387904]
[1726599086471,0.41428052,2356.2,2356.1,0.11015176]
[1726599086629,0.8629,2356.6,2356.1,0.0387904]
[1726599086826,0.41428501,2356.5,2356.2,0.06932601]
[1726599087030,4.24287,2356.9,2356.2,0.06932601]
[1726599087031,0.8629,2356.9,2356.2,0.06932601]
[1726599087227,4.24252,2357.1,2355.4,2.3245904]
[1726599087228,0.8629,2356.6,2355.4,2.3245904]
[1726599087434,0.41420664,2356.5,2355.5,4.54087018]
[1726599087633,4.24417,2356.2,2355.5,4.54074018]
[1726599087824,4.24417,2356.2,2355.5,4.54075018]
[1726599087825,0.8629,2356.2,2355.5,4.54075018]
[1726599088047,0.8629,2355.6,2355.5,0.06305114]
[1726599088248,9.3533,2355.6,2355.5,0.06305114]
[1726599088467,11.49076,2355.5,2355.4,0.0387904]
[1726599089127,7.66518934,2355.5,2355.4,0.0387904]
[1726599089324,4.24532,2355.6,2355.4,0.0387904]
[1726599089947,4.24538,2355.5,2355.4,0.0387904]
[1726599090876,11.49076,2355.5,2355.4,0.0387904]
[1726599091031,12.29056,2355.5,2355.4,0.0387904]
[1726599092665,16.53594,2355.5,2355.4,0.0387904]
[1726599092868,9.29056,2355.5,2355.4,0.0387904]
[1726599094271,9.29056,2355.5,2354.7,0.0387904]
[1726599094272,8.49328,2354.8,2354.7,0.0387904]
[1726599095449,8.49364,2354.7,2354.6,0.01]
[1726599095979,0.761,2354.8,2354.6,0.01]
[1726599095980,5.00766,2354.8,2354.6,0.01]
[1726599096278,5.00719,2355.1,2354.7,0.04959844]
[1726599096480,0.44338332,2355.2,2354.7,0.04959844]
[1726599096638,4.24622,2355.1,2354.6,0.01]
[1726599096840,0.44338332,2355.2,2354.7,0.04962845]
[1726599097280,4.68948332,2355.2,2354.7,0.04962845]
[1726599097451,4.68941332,2355.2,2354.7,0.04962845]
[1726599097853,4.24629,2355.0,2354.7,0.04962845]
[1726599098058,4.24664,2354.8,2354.7,0.04962845]
[1726599098242,0.761,2355.1,2354.7,0.04962845]
[1726599098243,4.24659,2354.9,2354.7,0.04962845]
[1726599098742,4.24628,2355.0,2354.7,0.04962845]
[1726599098936,4.24621,2355.1,2354.7,0.04962845]
[1726599099390,4.68934332,2355.2,2354.7,0.04962845]
[1726599099691,4.68934332,2355.2,2354.1,4.98287408]
[1726599099692,21.63,2354.4,2352.0,1.1221215]
[1726599099897,11.50014,2352.9,2352.0,1.1221215]
[1726599100039,7.24875,2353.7,2352.0,5.3737515]
[1726599100242,7.24875,2353.7,2352.0,4.00433339]
[1726599100243,4.24899,2353.5,2352.0,4.00433339]
[1726599100478,4.24963,2353.2,2352.4,4.25081]
[1726599100677,3.0,2353.7,2352.0,7.7205315]
[1726599100879,4.25007,2352.9,2352.0,1.1221215]
[1726599101274,8.50014,2352.9,2352.0,1.1221215]
[1726599101480,8.50014,2352.9,2352.1,4.25151]
[1726599101693,5.01075,2353.1,2352.2,4.25119]
[1726599101997,4.24967,2353.2,2352.5,4.25066]
[1726599102210,4.24967,2353.2,2352.0,5.3737815]
[1726599102211,0.761,2353.5,2352.6,4.25127425]
[1726599102350,5.01009,2353.5,2352.8,4.5901604]
[1726599102701,4.24937,2353.3,2352.9,1.12133204]
[1726599102991,4.24972,2353.1,2352.8,0.3400204]
[1726599103193,4.2499,2353.0,2352.8,0.3400204]
[1726599103562,4.24954,2353.2,2352.8,0.3400204]
[1726599103767,4.24984,2353.1,2352.8,0.3400204]
[1726599103990,4.25007,2352.9,2352.8,0.3400204]
[1726599104204,8.50014,2352.9,2352.8,0.3400204]
[1726599104751,4.24957,2353.2,2352.8,0.3400204]
[1726599105297,4.24991,2353.0,2352.8,0.3400204]
[1726599105465,4.24961,2353.2,2352.8,0.3400204]
[1726599105792,4.24966,2353.2,2352.8,0.3400204]
[1726599105961,0.761,2353.5,2352.8,0.3400204]
[1726599105962,4.24981,2353.1,2352.8,0.3400204]
[1726599106389,8.49964,2353.1,2352.8,0.3400204]
[1726599106594,4.24981,2353.1,2352.8,0.3400204]
[1726599107163,0.761,2353.5,2352.8,0.3400204]
[1726599107361,4.24918,2353.4,2352.9,0.05854554]
[1726599107668,4.24939,2353.3,2352.9,4.30857554]
[1726599107867,4.24939,2353.3,2352.9,0.05854554]
[1726599108083,8.49884,2353.3,2352.9,0.05854554]
[1726599108267,4.24939,2353.3,2352.9,0.05854554]
[1726599108475,4.24954,2353.2,2352.9,0.05854554]
[1726599108877,8.49889,2353.3,2352.9,0.05854554]
[1726599109060,4.24968,2353.2,2352.9,0.05854554]
[1726599109257,4.24989,2353.0,2352.9,0.05854554]
[1726599109501,8.49978,2353.0,2352.9,0.05854554]
[1726599109983,4.25007,2352.9,2352.8,0.3400204]
[1726599110354,4.25007,2352.9,2352.8,0.39859082]
[1726599110957,8.50014,2352.9,2352.8,0.39859082]
[1726599111290,0.4438065,2353.0,2352.8,0.3400204]
[1726599111474,4.24925,2353.4,2352.8,0.3400204]
[1726599111839,4.24892,2353.6,2353.1,4.24971]
[1726599112114,0.761,2353.9,2353.0,2.3065]
[1726599112115,5.00846,2354.4,2353.3,4.98287408]
[1726599112264,0.761,2354.4,2354.0,4.24796]
[1726599112618,4.24638,2355.0,2354.4,4.24725]
[1726599112759,4.24612,2355.1,2354.6,4.24699]
[1726599112964,4.24605,2355.2,2354.6,4.24699]
[1726599113300,4.24567,2355.4,2354.9,4.24636]
[1726599113497,8.49136,2355.4,2354.8,4.24662]
[1726599113802,4.24582,2355.3,2355.0,0.06280082]
[1726599114005,4.24628,2355.0,2354.9,0.06292215]
[1726599114207,0.47039665,2355.5,2354.1,7.24781]
[1726599114208,4.24592,2355.2,2354.2,2.4115]
[1726599114375,4.24669,2354.8,2354.3,4.24754]
[1726599114575,4.24592,2355.2,2354.2,3.136281]
[1726599114576,4.24601,2355.2,2354.5,4.24717]
[1726599114895,8.49272,2355.0,2354.6,0.43321122]
[1726599115062,4.24629,2355.0,2354.3,4.24742]
[1726599115263,4.24668,2354.8,2354.2,3.136281]
[1726599115467,8.49273,2355.0,2354.4,4.24727]
[1726599115699,0.65482084,2355.4,2354.3,4.98287408]
[1726599116000,4.24602,2355.2,2354.4,0.73943741]
[1726599116248,0.65482084,2355.5,2354.7,4.24669]
[1726599116249,8.49137,2355.4,2354.7,4.24669]
[1726599116498,4.24584,2355.3,2354.7,8.4934]
[1726599116715,0.75573444,2355.2,2354.8,4.24656]
[1726599117006,4.24536,2355.6,2355.0,4.24619]
[1726599117171,4.24535,2355.6,2355.0,9.59404384]
[1726599117513,4.24493,2355.8,2355.0,5.34785384]
[1726599117514,8.48991,2355.8,2355.0,5.34785384]
[1726599117716,4.24495,2355.8,2355.2,4.24591]
[1726599118011,0.761,2355.9,2355.0,5.43275969]
[1726599118208,4.24534,2355.6,2355.0,5.43275969]
[1726599118560,8.48993,2355.8,2355.2,4.24581]
[1726599118765,4.24496,2355.8,2355.2,8.49158]
[1726599119003,4.68783076,2356.2,2355.1,9.59771788]
[1726599119202,4.68783076,2356.2,2355.3,4.24571]
[1726599119203,4.24494,2355.8,2355.3,4.24571]
[1726599119389,4.24494,2355.8,2355.2,5.20568179]
[1726599119788,4.2452,2355.6,2354.9,6.6855]
[1726599120025,4.24557,2355.4,2354.9,2.4392]
[1726599120176,4.24557,2355.4,2354.7,7.24681]
[1726599120177,4.24622,2355.1,2354.6,2.4271]
[1726599120362,0.761,2355.6,2354.6,2.4271]
[1726599120363,4.24659,2354.9,2354.6,2.4271]
[1726599120567,4.24617,2355.1,2354.7,0.06973094]
[1726599120766,4.24594,2355.2,2354.7,4.31654094]
[1726599121011,4.24558,2355.4,2354.8,4.24649]
[1726599121170,4.24548,2355.5,2354.8,4.24649]
[1726599121171,4.24548,2355.5,2354.9,5.21315388]
[1726599121367,4.24515,2355.7,2355.1,4.24594]
[1726599121368,4.24511,2355.7,2355.1,4.24594]
[1726599121575,4.24534,2355.6,2355.1,4.24594]
[1726599121807,4.24573,2355.4,2354.8,4.24653]
[1726599122103,4.24589,2355.3,2354.7,4.24672]
[1726599122304,4.24504,2355.7,2355.0,4.24624]
[1726599122305,4.24518,2355.7,2355.0,4.24624]
[1726599122512,4.24512,2355.7,2355.2,4.24592]
[1726599122822,0.44365076,2356.2,2355.6,4.24517]
[1726599122985,4.24443,2356.1,2355.6,4.24517]
[1726599123173,4.68781076,2356.2,2355.5,4.24538]
[1726599123367,4.24432,2356.1,2355.7,4.245]
[1726599123823,0.44365076,2356.2,2355.5,4.669918]
[1726599123824,0.44365076,2356.2,2355.5,0.424538]
[1726599124134,4.68778076,2356.2,2355.8,2.3796]
[1726599124358,4.24431,2356.1,2355.8,2.3796]
[1726599125204,8.4887,2356.1,2355.8,2.3796]
[1726599125398,4.24431,2356.1,2355.8,2.3796]
[1726599125599,0.44365076,2356.2,2355.8,6.62443]
[1726599126008,4.24422,2356.2,2355.8,3.466549]
[1726599126437,4.2444,2356.1,2355.8,2.3796]
[1726599127629,4.2444,2356.1,2355.6,4.24517]
[1726599127829,4.24451,2356.0,2355.5,16.21657788]
[1726599128067,4.2444,2356.1,2355.6,4.24519]
[1726599128568,8.4888,2356.1,2355.6,4.24519]
[1726599128865,4.2444,2356.1,2355.6,4.24519]
[1726599129023,4.24458,2356.0,2355.5,11.97120788]
[1726599129229,4.74920565,2356.5,2355.5,13.33047445]
[1726599129423,4.24484,2355.8,2355.5,2.3742]
[1726599129630,4.24496,2355.8,2355.1,2.317]
[1726599129866,4.2451,2355.7,2355.2,4.24583]
[1726599130042,4.24522,2355.6,2355.2,4.24583]
[1726599130243,4.24547,2355.5,2355.1,2.317]
[1726599130469,8.4906,2355.6,2355.1,6.56301]
[1726599130770,4.24522,2355.6,2355.1,6.56301]
[1726599131068,4.24522,2355.6,2355.2,4.24585]
[1726599131430,0.761,2356.0,2355.1,2.317]
[1726599131731,4.66370995,2355.9,2354.7,2.4933]
[1726599132025,0.761,2356.0,2354.7,2.4933]
[1726599132026,4.24566,2355.4,2354.9,4.24645]
[1726599132519,0.761,2356.0,2354.8,0.24933]
[1726599132520,4.24483156,2355.2,2354.8,0.24933]
[1726599132720,4.2458,2355.3,2354.7,6.73997]
[1726599132932,4.2458,2355.3,2354.8,4.24659]
[1726599133289,4.2461,2355.1,2354.7,6.73997]
[1726599133636,4.2464,2355.0,2354.7,2.4933]
[1726599133836,4.24663,2354.9,2354.7,2.4933]
[1726599134003,4.24663,2354.9,2354.5,4.24713]
[1726599134940,4.24714,2354.6,2354.1,6.53711]
[1726599135167,4.24765,2354.3,2354.1,2.2893]
[1726599135427,4.24839,2353.9,2353.4,4.24903]
[1726599135593,4.24692,2354.7,2353.4,4.24903]
[1726599135594,4.24726,2354.5,2353.7,4.24851]
[1726599135930,4.24726,2354.5,2353.9,8.4963]
[1726599136112,4.24754,2354.4,2353.9,0.84963]
[1726599136485,4.2472,2354.5,2354.0,4.24798]
[1726599136604,4.2472,2354.5,2353.9,4.24809]
[1726599136806,4.24736,2354.4,2353.7,4.2485]
[1726599137125,4.2482,2354.0,2353.7,0.09266595]
[1726599137615,4.2482,2354.0,2353.7,0.06949946]
[1726599137816,4.24819,2354.0,2353.7,0.06949946]
[1726599138719,4.24804,2354.1,2353.7,0.06949946]
[1726599138894,4.24786,2354.2,2353.7,0.06949946]
[1726599139121,4.24756,2354.3,2353.8,4.24831]
[1726599139325,0.761,2354.7,2353.9,4.24817]
[1726599139326,4.24752,2354.4,2353.9,4.24817]
[1726599139535,4.24752,2354.4,2353.9,5.77671335]
[1726599139859,4.24774,2354.2,2353.9,0.06973962]
[1726599140066,0.63933958,2354.1,2353.9,0.06973962]
[1726599140277,0.761,2354.7,2353.9,0.06973962]
[1726599140555,5.90944363,2354.6,2354.1,4.2478]
[1726599140767,5.90959925,2354.5,2354.1,4.2478]
[1726599140962,0.63935524,2354.4,2354.1,4.2478]
[1726599141258,0.63944629,2354.3,2354.1,0.8751264]
[1726599141458,0.63944629,2354.2,2354.0,4.24808]
[1726599141658,4.24718,2354.5,2354.0,4.24808]
[1726599141823,1.66243415,2354.4,2354.0,4.3275057]
[1726599142022,0.63939775,2354.3,2354.0,4.3275057]
[1726599142267,0.63945977,2354.2,2354.0,0.0794257]
[1726599142420,4.24736,2354.4,2354.0,0.0794257]
[1726599142771,0.63956082,2354.3,2354.0,0.0794257]
[1726599142935,0.63956022,2354.2,2354.0,0.0794257]
[1726599143132,4.24736,2354.4,2354.0,0.0794257]
[1726599143449,0.63956588,2354.3,2354.0,0.0794257]
[1726599143647,4.24736,2354.4,2354.0,4.3275057]
[1726599143835,0.63958767,2354.3,2354.0,4.3275057]
[1726599144159,0.44364451,2354.9,2354.4,4.2473]
[1726599144331,0.63976565,2354.8,2354.6,4.24695]
[1726599144659,0.44364451,2354.9,2354.7,2.4526]
[1726599144864,0.44364451,2354.9,2354.7,6.6994]
[1726599145168,0.44364451,2354.9,2354.7,2.4526]
[1726599145169,4.69011451,2354.9,2354.7,2.4526]
[1726599145459,0.44364451,2354.9,2354.7,2.4526]
[1726599145662,4.24618,2355.1,2354.7,2.4526]
[1726599145954,0.63992997,2355.0,2354.7,2.4526]
[1726599146158,4.2464,2355.0,2354.7,2.4526]
[1726599146362,4.24647,2354.9,2354.7,2.4526]
[1726599146588,4.2464,2355.0,2354.7,2.4526]
[1726599146762,4.24664,2354.8,2354.4,2.2815]
[1726599147226,4.24643,2355.0,2354.5,4.24716]
[1726599147420,0.761,2355.4,2354.7,4.24673]
[1726599147421,4.24615,2355.1,2354.7,4.24673]
[1726599147622,0.63994448,2355.0,2354.6,8.49398]